bitfinex/quotes_SOLUSD_20240702
["timestamp","ask_amount","ask_price","bid_price","bid_amount"]
[1719887856725,12.2,148.17,148.13,123.6272]
[1719887856928,12.2,148.16,148.13,123.6272]
[1719887862138,18.949,148.17,148.13,123.6272]
[1719887862556,12.2,148.16,148.13,123.6272]
[1719887863047,18.9485,148.19,148.14,18.9502]
[1719887863256,20.0,148.18,148.15,12.2]
[1719887864253,26.7485,148.18,148.15,12.2]
[1719887865055,26.7485,148.18,148.14,6.7502]
[1719887865358,26.7485,148.18,148.15,12.2]
[1719887865855,20.0,148.18,148.16,6.7494]
[1719887866062,26.7481,148.19,148.15,135.8241]
[1719887866354,6.7487,148.18,148.15,12.2]
[1719887866555,6.7487,148.18,148.14,12.2]
[1719887867057,6.7487,148.18,148.13,118.9506]
[1719887868054,6.7487,148.18,148.14,12.2]
[1719887868249,6.749,148.17,148.13,106.7506]
[1719887868549,6.749,148.17,148.13,18.9506]
[1719887868754,6.749,148.17,148.12,23.6284]
[1719887868959,6.749,148.17,148.13,12.2]
[1719887869437,6.75,148.15,148.11,100.0]
[1719887869643,6.75,148.15,148.11,118.9517]
[1719887870155,12.2,148.16,148.11,112.2]
[1719887870455,6.75,148.15,148.12,12.2]
[1719887870862,6.75,148.15,148.11,118.9514]
[1719887871160,18.9496,148.16,148.11,118.9514]
[1719887871354,6.7499,148.15,148.11,18.9514]
[1719887871653,18.9495,148.16,148.12,6.7512]
[1719887874171,6.7491,148.17,148.12,6.7512]
[1719887874341,18.9491,148.17,148.13,6.7506]
[1719887875161,6.7496,148.16,148.12,18.9511]
[1719887876042,18.9496,148.16,148.12,6.7511]
[1719887876561,18.949,148.17,148.13,6.7508]
[1719887878361,6.749,148.17,148.13,6.7508]
[1719887878555,18.949,148.17,148.13,6.7508]
[1719887878964,6.749,148.17,148.13,18.9508]
[1719887881143,6.7486,148.18,148.13,118.9508]
[1719887881448,20.0,148.17,148.14,6.7503]
[1719887881854,20.0,148.17,148.14,18.95]
[1719887882057,20.0,148.18,148.15,6.7499]
[1719887882669,26.7486,148.18,148.14,18.9502]
[1719887882861,6.7497,148.16,148.14,12.2]
[1719887883064,12.2,148.17,148.12,12.2]
[1719887883264,6.7498,148.16,148.13,12.2]
[1719887883452,6.7498,148.16,148.12,18.9511]
[1719887884949,6.75,148.15,148.1,23.6315]
[1719887885365,6.75,148.15,148.11,12.2]
[1719887885575,6.75,148.15,148.11,18.9516]
[1719887886073,6.7496,148.16,148.12,12.2]
[1719887886278,6.7496,148.16,148.12,18.9512]
[1719887890592,6.749,148.17,148.13,18.9507]
[1719887890759,20.0,148.16,148.14,12.2]
[1719887890959,26.7485,148.18,148.14,12.2]
[1719887891175,6.749,148.17,148.14,12.2]
[1719887891362,20.0,148.16,148.14,12.2]
[1719887891979,20.0,148.16,148.13,118.9506]
[1719887892890,26.7498,148.16,148.12,16.8773]
[1719887893057,20.0,148.16,148.13,12.2]
[1719887893387,6.7499,148.15,148.12,29.0773]
[1719887893763,6.7499,148.15,148.13,12.2]
[1719887894084,6.7499,148.15,148.12,29.0773]
[1719887895671,6.7496,148.16,148.12,29.0773]
[1719887896380,6.7499,148.15,148.12,29.0773]
[1719887896578,12.2,148.16,148.1,6.752]
[1719887896770,12.2,148.16,148.1,18.952]
[1719887896969,12.2,148.16,148.11,12.2]
[1719887897373,12.2,148.16,148.1,6.752]
[1719887897599,32.2,148.15,148.1,12.2]
[1719887897898,6.7504,148.14,148.1,18.952]
[1719887898101,6.7499,148.15,148.11,6.7516]
[1719887898281,6.7504,148.14,148.1,6.7521]
[1719887898592,6.7504,148.14,148.1,18.9521]
[1719887899093,6.75,148.15,148.11,18.9516]
[1719887900394,6.75,148.15,148.11,12.2]
[1719887900994,6.75,148.15,148.1,6.752]
[1719887901303,6.7504,148.14,148.11,12.2]
[1719887902110,6.7509,148.13,148.09,23.6333]
[1719887902307,6.7509,148.13,148.1,12.2]
[1719887902679,6.7509,148.13,148.09,23.6333]
[1719887902982,6.7509,148.13,148.1,12.2]
[1719887903186,6.7504,148.14,148.1,18.9521]
[1719887904403,6.7504,148.14,148.1,6.7521]
[1719887904704,12.2,148.15,148.1,12.2]
[1719887905112,12.2,148.15,148.09,16.881]
[1719887905405,27.4636,148.15,148.09,16.881]
[1719887905716,6.7504,148.14,148.1,18.9521]
[1719887907399,27.4636,148.15,148.11,6.7515]
[1719887907400,34.2136,148.15,148.11,6.7515]
[1719887908092,22.0136,148.15,148.11,6.7515]
[1719887908778,22.0136,148.15,148.07,137.7702]
[1719887908779,18.9513,148.12,148.08,6.753]
[1719887908995,26.7517,148.11,148.07,6.7534]
[1719887909198,26.7517,148.11,148.07,18.9534]
[1719887910118,38.9517,148.11,148.07,6.7534]
[1719887910410,38.9517,148.11,148.06,29.0843]
[1719887910411,32.2,148.11,148.06,16.8843]
[1719887910589,20.0,148.11,148.06,29.0843]
[1719887910907,18.9518,148.11,148.07,6.7531]
[1719887911985,12.2,148.11,148.07,6.7531]
[1719887912185,26.7514,148.12,148.08,6.753]
[1719887912406,38.9514,148.12,148.08,6.753]
[1719887912588,6.7517,148.11,148.08,12.2]
[1719887912784,6.7517,148.11,148.07,6.7532]
[1719887913002,26.7513,148.12,148.08,6.7529]
[1719887914786,26.7513,148.12,148.07,106.7534]
[1719887917099,6.7518,148.11,148.07,106.7534]
[1719887917410,6.7518,148.11,148.09,12.2]
[1719887918077,26.7514,148.12,148.09,12.2]
[1719887919493,6.7517,148.11,148.09,12.2]
[1719887920812,6.7517,148.11,148.1,12.2]
[1719887921000,26.7517,148.11,148.1,12.2]
[1719887922990,26.7517,148.11,148.07,106.7534]
[1719887923203,20.0,148.11,148.07,106.7531]
[1719887924095,26.7517,148.11,148.07,100.0]
[1719887924289,6.753,148.09,148.03,116.8882]
[1719887924490,35.2197,148.11,148.03,16.8882]
[1719887924787,35.2197,148.11,148.01,100.0]
[1719887924788,6.7548,148.05,148.04,12.2]
[1719887924997,6.7548,148.05,148.01,106.7562]
[1719887925213,6.7548,148.05,148.04,12.2]
[1719887925510,6.754,148.06,148.04,12.2]
[1719887927089,16.8808,148.1,148.02,16.8891]
[1719887927291,20.0,148.09,148.05,12.2]
[1719887927491,6.7536,148.07,148.02,23.6445]
[1719887927691,6.7545,148.05,148.03,12.2]
[1719887927903,6.7545,148.05,148.04,12.2]
[1719887928098,6.754,148.06,148.04,12.2]
[1719887930213,12.7655,148.08,148.04,12.2]
[1719887930409,20.0,148.07,148.04,116.8869]
[1719887930719,20.0,148.07,148.06,12.2]
[1719887931121,20.0,148.07,148.05,12.2]
[1719887931308,20.0,148.07,148.06,12.2]
[1719887933107,6.7526,148.09,148.06,12.2]
[1719887933519,6.7535,148.08,148.04,116.8869]
[1719887933710,6.7535,148.08,148.06,12.2]
[1719887934613,6.7527,148.09,148.06,12.2]
[1719887934819,6.7527,148.09,148.04,123.6416]
[1719887935122,6.7531,148.08,148.06,12.2]
[1719887936504,34.43499107,148.11,148.06,12.2]
[1719887936505,6.7535,148.07,148.06,12.2]
[1719887936708,6.7535,148.07,148.05,12.2]
[1719887936927,6.7532,148.08,148.05,12.2]
[1719887937152,6.7536,148.07,148.06,12.2]
[1719887937431,6.7536,148.07,148.02,106.7557]
[1719887937620,6.7536,148.07,148.06,12.2]
[1719887938018,6.7532,148.08,148.06,12.2]
[1719887938518,6.7532,148.08,148.07,12.2]
[1719887940021,6.7532,148.08,148.03,6.7553]
[1719887940234,39.11509107,148.11,148.01,23.6462]
[1719887940539,20.0,148.1,148.01,16.8903]
[1719887940833,6.7526,148.09,148.06,12.2]
[1719887941126,20.0,148.08,148.07,12.2]
[1719887942137,22.23499107,148.11,148.07,12.2]
[1719887942318,7.01529107,148.11,148.07,29.0835]
[1719887942519,23.65827914,148.15,148.07,29.0835]
[1719887942520,20.0,148.1,148.07,29.0835]
[1719887942721,23.65827914,148.15,148.07,16.8835]
[1719887942722,20.0,148.12,148.07,16.8835]
[1719887943033,32.2,148.13,148.08,12.2]
[1719887943230,6.7515,148.12,148.08,12.2]
[1719887943433,20.0,148.11,148.08,18.9529]
[1719887943635,18.9509,148.13,148.08,18.9529]
[1719887944008,6.7509,148.13,148.08,6.7529]
[1719887944322,6.7509,148.13,148.09,12.2]
[1719887944831,6.7513,148.12,148.07,123.6369]
[1719887945036,6.7513,148.12,148.08,12.2]
[1719887945224,20.0,148.11,148.08,12.2]
[1719887945914,26.7517,148.11,148.08,12.2]
[1719887946333,6.7523,148.1,148.08,12.2]
[1719887946730,26.7518,148.11,148.08,12.2]
[1719887946936,20.0,148.11,148.09,12.2]
[1719887947112,20.0,148.11,148.06,23.6383]
[1719887947311,6.7518,148.11,148.09,12.2]
[1719887947609,20.0,148.1,148.08,12.2]
[1719887947808,26.7523,148.1,148.08,12.2]
[1719887948028,20.0,148.1,148.05,6.7544]
[1719887948224,6.7527,148.09,148.07,12.2]
[1719887948429,6.7527,148.09,148.04,6.7548]
[1719887948622,6.7527,148.09,148.06,12.2]
[1719887949032,6.7523,148.1,148.07,12.2]
[1719887949219,20.0,148.09,148.07,12.2]
[1719887949419,20.0,148.11,148.07,12.2]
[1719887950119,6.7531,148.08,148.03,123.6433]
[1719887950422,6.7531,148.08,148.05,12.2]
[1719887951126,6.7532,148.08,148.05,12.2]
[1719887951533,20.0,148.07,148.05,12.2]
[1719887952230,6.7532,148.08,148.05,12.2]
[1719887952433,6.754,148.06,148.05,12.2]
[1719887952725,6.754,148.06,147.98,6.7573]
[1719887952726,6.7553,148.03,147.98,6.7573]
[1719887952927,6.7553,148.03,148.01,12.2]
[1719887953136,59.24530384,148.07,147.98,55.5573]
[1719887953137,6.755,148.04,148.02,12.2]
[1719887953342,20.0,148.03,148.02,12.2]
[1719887954140,6.7549,148.04,147.99,16.8924]
[1719887954349,20.0,148.03,148.02,12.2]
[1719887956441,26.7558,148.03,148.01,12.2]
[1719887957029,20.0,148.03,148.02,12.2]
[1719887957217,20.0,148.03,147.99,6.7571]
[1719887957653,26.7554,148.03,147.98,148.8]
[1719887957948,6.7558,148.02,148.01,12.2]
[1719887958449,20.0,148.02,147.98,106.7576]
[1719887958747,26.7554,148.03,148.01,12.2]
[1719887963047,20.0,148.03,148.02,12.2]
[1719887964237,26.7553,148.03,147.98,129.0935]
[1719887964443,6.7559,148.02,148.01,12.2]
[1719887964630,26.7559,148.02,148.01,12.2]
[1719887965436,26.7559,148.02,147.98,116.8935]
[1719887965624,26.7559,148.02,148.01,12.2]
[1719887969155,20.0,148.02,148.01,12.2]
[1719887970351,22.36100384,148.07,148.01,112.2]
[1719887970650,22.36100384,148.07,148.04,12.2]
[1719887970651,6.7545,148.05,148.04,12.2]
[1719887970847,26.7545,148.05,148.04,12.2]
[1719887972457,6.7558,148.02,148.01,100.0]
[1719887972670,6.7549,148.04,148.03,12.2]
[1719887972840,26.7549,148.04,148.03,12.2]
[1719887973040,6.7549,148.04,148.03,12.2]
[1719887973368,26.7549,148.04,148.03,12.2]
[1719887976960,6.7554,148.03,148.01,100.0]
[1719887977163,6.7554,148.03,148.02,12.2]
[1719887978352,20.0,148.04,147.97,100.0]
[1719887978552,6.7558,148.02,148.01,12.2]
[1719887981077,6.7554,148.03,148.01,12.2]
[1719887981570,6.7554,148.03,147.99,100.0]
[1719887981862,6.755,148.04,148.02,12.2]
[1719887982043,20.0,148.03,148.02,12.2]
[1719887982563,20.0,148.03,148.0,12.2]
[1719887982756,20.0,148.03,147.97,123.6527]
[1719887982757,20.0,148.05,148.01,12.2]
[1719887983864,6.7556,148.03,148.01,12.2]
[1719887984070,6.755,148.04,148.01,12.2]
[1719887984358,20.0,148.03,148.0,6.7567]
[1719887984564,26.7546,148.05,148.02,12.2]
[1719887985135,26.7546,148.05,147.99,116.8926]
[1719887985136,20.0,148.05,147.99,116.8926]
[1719887985368,20.0,148.06,148.01,12.2]
[1719887985568,6.7557,148.03,148.01,12.2]
[1719887985735,6.7557,148.03,148.02,12.2]
[1719887985937,26.7557,148.03,148.02,12.2]
[1719887986564,20.0,148.03,148.02,12.2]
[1719887987155,6.7543,148.06,148.02,12.2]
[1719887987348,26.7545,148.05,148.02,12.2]
[1719887987957,26.7545,148.05,148.03,12.2]
[1719887988953,6.7549,148.04,148.03,12.2]
[1719887989355,6.7549,148.04,147.99,116.8926]
[1719887989356,26.7549,148.04,147.99,116.8926]
[1719887989568,6.7554,148.03,148.02,12.2]
[1719887989758,6.755,148.04,148.02,12.2]
[1719887994171,26.7544,148.05,148.02,12.2]
[1719887994577,20.0,148.05,148.03,12.2]
[1719887995161,20.0,148.05,148.02,12.2]
[1719887995558,26.7545,148.05,148.02,12.2]
[1719887995978,20.0,148.05,148.03,12.2]
[1719887996557,26.7545,148.05,148.03,12.2]
[1719887998474,20.0,148.05,148.03,12.2]
[1719887998654,20.0,148.06,148.04,12.2]
[1719887999187,26.7541,148.06,148.04,12.2]
[1719887999386,6.7544,148.05,148.01,116.8902]
[1719887999678,20.0,148.06,148.01,116.8902]
[1719887999679,26.7541,148.06,148.03,12.2]
[1719888000069,26.7541,148.06,148.04,12.2]
[1719888001661,22.9904,148.11,148.06,6.754]
[1719888001870,22.9904,148.11,148.05,124.4]
[1719888001871,6.7522,148.1,148.08,12.2]
[1719888002193,22.9902,148.11,148.08,12.2]
[1719888002682,6.7522,148.1,148.08,12.2]
[1719888002977,20.0,148.09,148.08,12.2]
[1719888004075,22.9902,148.11,148.08,12.2]
[1719888004254,20.0,148.1,148.08,12.2]
[1719888007478,20.0,148.1,148.09,12.2]
[1719888009974,7.01169304,148.13,148.09,112.2]
[1719888010277,6.7512,148.12,148.09,112.2]
[1719888010487,6.7517,148.11,148.09,100.0]
[1719888010687,6.7517,148.11,148.09,112.2]
[1719888010979,6.7517,148.11,148.09,100.0]
[1719888011182,6.7517,148.11,148.1,12.2]
[1719888011800,6.7517,148.11,148.09,12.2]
[1719888012220,6.7521,148.1,148.09,12.2]
[1719888014793,6.7518,148.11,148.09,12.2]
[1719888020805,6.7513,148.12,148.09,12.2]
[1719888020987,20.0,148.11,148.1,12.2]
[1719888021303,20.0,148.11,148.08,16.8821]
[1719888021494,20.0,148.12,148.11,12.2]
[1719888021801,26.7516,148.12,148.08,16.8821]
[1719888021983,20.0,148.12,148.1,12.2]
[1719888022299,20.0,148.13,148.1,12.2]
[1719888023381,6.7521,148.1,148.09,12.2]
[1719888023581,6.7527,148.09,148.08,12.2]
[1719888024003,26.7527,148.09,148.08,12.2]
[1719888025009,20.0,148.09,148.08,12.2]
[1719888028316,20.0,148.09,148.04,16.8869]
[1719888028612,32.2,148.11,148.06,12.2]
[1719888028813,6.7531,148.08,148.06,12.2]
[1719888029292,6.7536,148.07,148.03,6.755]
[1719888029501,6.7532,148.08,148.05,12.2]
[1719888029695,6.7532,148.08,148.06,12.2]
[1719888030014,20.0,148.09,148.06,12.2]
[1719888030015,6.7527,148.09,148.06,12.2]
[1719888030205,20.0,148.08,148.06,12.2]
[1719888030693,20.0,148.08,148.07,12.2]
[1719888031084,22.25,148.1,148.07,12.2]
[1719888031414,20.0,148.09,148.05,6.7544]
[1719888031606,26.7527,148.09,148.07,12.2]
[1719888031999,26.7527,148.09,148.04,106.7549]
[1719888032198,26.7527,148.09,148.06,12.2]
[1719888033209,6.7531,148.08,148.04,106.7549]
[1719888033515,6.7531,148.08,148.06,12.2]
[1719888034102,26.7528,148.09,148.06,12.2]
[1719888034494,20.0,148.09,148.03,23.6431]
[1719888034696,6.7536,148.07,148.06,12.2]
[1719888034905,26.7536,148.07,148.05,12.2]
[1719888037910,26.7536,148.07,148.06,12.2]
[1719888038113,6.7532,148.08,148.06,12.2]
[1719888038298,20.0,148.07,148.06,12.2]
[1719888040195,26.7535,148.07,148.06,12.2]
[1719888041410,20.0,148.07,148.06,12.2]
[1719888042513,26.7535,148.07,148.06,12.2]
[1719888043612,6.7542,148.06,148.0,16.8915]
[1719888043804,6.7542,148.06,148.03,12.2]
[1719888044524,6.7542,148.06,148.04,12.2]
[1719888044728,6.7542,148.06,148.05,12.2]
[1719888044922,20.0,148.06,148.05,12.2]
[1719888047623,20.0,148.06,148.03,12.2]
[1719888047832,20.0,148.07,148.03,12.2]
[1719888048037,20.0,148.07,148.0,100.0]
[1719888048205,20.0,148.07,148.03,12.2]
[1719888049629,6.7547,148.05,148.03,12.2]
[1719888050627,20.0,148.04,148.01,12.2]
[1719888051201,26.755,148.04,148.01,12.2]
[1719888054216,6.755,148.04,148.01,12.2]
[1719888054419,15.4098,148.05,148.03,12.2]
[1719888054622,20.0,148.04,148.03,12.2]
[1719888056635,20.0,148.04,148.0,106.7566]
[1719888056814,20.0,148.04,148.02,12.2]
[1719888057921,20.0,148.04,148.0,106.7566]
[1719888058133,20.0,148.04,148.02,12.2]
[1719888059032,20.0,148.04,148.03,12.2]
[1719888060227,26.7549,148.04,148.02,12.2]
[1719888061015,26.7549,148.04,147.99,23.6494]
[1719888061016,26.7549,148.04,148.01,12.2]
[1719888062029,26.7549,148.04,148.02,12.2]
[1719888062220,20.0,148.04,148.02,12.2]
[1719888063140,26.7549,148.04,148.02,12.2]
[1719888064127,20.0,148.04,148.02,12.2]
[1719888064327,20.0,148.04,148.03,12.2]
[1719888068047,7.01367874,148.08,148.03,112.2]
[1719888068252,20.0,148.07,148.06,12.2]
[1719888068458,6.7534,148.08,148.06,12.2]
[1719888069025,6.7535,148.07,148.06,12.2]
[1719888069227,6.7547,148.05,148.01,116.8897]
[1719888069447,6.7547,148.05,148.03,12.2]
[1719888069929,6.7547,148.05,148.01,16.8897]
[1719888070129,6.7547,148.05,148.03,12.2]
[1719888070846,12.2,148.08,147.99,104.0039]
[1719888070847,6.7549,148.04,147.99,106.7571]
[1719888071033,6.7549,148.04,148.02,12.2]
[1719888071956,6.7544,148.06,148.02,12.2]
[1719888072133,12.2,148.03,147.96,0.8381857]
[1719888072334,71.4378,148.05,147.96,0.8381857]
[1719888072335,6.7573,147.99,147.96,0.8381857]
[1719888072532,20.0,147.98,147.96,0.8381857]
[1719888072848,26.7577,147.98,147.96,0.8381857]
[1719888073053,15.0969,147.97,147.91,54.15902335]
[1719888073232,15.0969,147.97,147.8,1.17529316]
[1719888073233,18.9594,147.95,147.9,112.2]
[1719888073439,20.0,147.94,147.91,12.2]
[1719888073639,20.0,147.94,147.92,12.2]
[1719888073947,20.0,147.94,147.93,12.2]
[1719888074248,21.854,148.0,147.93,18.9597]
[1719888074552,20.0,147.98,147.93,18.9597]
[1719888075134,20.0,147.98,147.92,100.0]
[1719888075135,20.0,147.98,147.91,16.9011]
[1719888075350,20.0,147.98,147.93,12.2]
[1719888075351,6.7585,147.96,147.93,12.2]
[1719888075735,6.7585,147.96,147.91,16.9011]
[1719888076052,6.7585,147.96,147.93,12.2]
[1719888076261,6.7585,147.96,147.91,16.9011]
[1719888076547,6.7585,147.96,147.93,12.2]
[1719888077270,6.7581,147.97,147.93,12.2]
[1719888077554,20.0,147.96,147.94,12.2]
[1719888077924,20.0,147.97,147.94,12.2]
[1719888078738,26.7583,147.97,147.93,12.2]
[1719888079558,26.7583,147.97,147.94,12.2]
[1719888079801,20.0,147.97,147.94,12.2]
[1719888080064,26.7578,147.98,147.95,12.2]
[1719888081065,20.0,147.98,147.95,12.2]
[1719888081361,21.854,148.0,147.97,12.2]
[1719888082049,21.854,148.0,147.96,12.2]
[1719888082461,20.0,147.99,147.96,12.2]
[1719888083566,20.0,147.99,147.97,12.2]
[1719888084456,20.0,148.0,147.97,12.2]
[1719888085145,32.2,148.01,147.96,12.2]
[1719888085551,6.7572,147.99,147.96,12.2]
[1719888086879,6.7572,147.99,147.94,100.0]
[1719888087183,6.7578,147.98,147.95,12.2]
[1719888088687,6.7573,147.99,147.95,12.2]
[1719888092079,6.7573,147.99,147.93,23.6591]
[1719888092080,6.7569,148.0,147.96,12.2]
[1719888092255,20.0,147.99,147.96,12.2]
[1719888097455,20.0,147.99,147.97,12.2]
[1719888100587,20.0,147.99,147.98,12.2]
[1719888100766,7.02295168,148.02,147.98,12.2]
[1719888100973,20.0,148.01,147.98,12.2]
[1719888101171,20.0,148.01,148.0,12.2]
[1719888102089,20.0,148.01,147.99,12.2]
[1719888102989,6.7572,147.99,147.95,16.8972]
[1719888103197,6.7569,148.0,147.97,12.2]
[1719888103400,6.7567,148.0,147.98,12.2]
[1719888103566,6.7567,148.0,147.99,12.2]
[1719888103775,26.7567,148.0,147.98,12.2]
[1719888103973,6.7567,148.0,147.98,12.2]
[1719888104272,6.7572,147.99,147.98,12.2]
[1719888104585,20.0,148.01,147.97,12.2]
[1719888104586,6.7568,148.0,147.97,12.2]
[1719888106390,6.7573,147.99,147.93,6.7598]
[1719888106588,6.7579,147.98,147.92,23.6607]
[1719888106779,6.7579,147.98,147.94,12.2]
[1719888107687,6.7579,147.98,147.95,12.2]
[1719888108576,6.7579,147.98,147.92,23.6607]
[1719888108898,6.7579,147.98,147.95,12.2]
[1719888109090,6.7573,147.99,147.95,12.2]
[1719888109273,20.0,147.98,147.95,12.2]
[1719888110598,20.0,147.98,147.96,12.2]
[1719888113380,20.0,147.98,147.97,12.2]
[1719888113688,20.0,147.99,147.97,12.2]
[1719888114587,20.0,147.99,147.96,12.2]
[1719888114976,26.7572,147.99,147.96,12.2]
[1719888116796,20.0,147.99,147.97,12.2]
[1719888116982,26.7572,148.0,147.95,100.0]
[1719888117177,6.7573,147.99,147.96,12.2]
[1719888117376,20.0,147.98,147.96,12.2]
[1719888119195,26.7577,147.98,147.93,100.0]
[1719888119400,26.7577,147.98,147.95,12.2]
[1719888120985,26.7577,147.98,147.93,100.0]
[1719888121286,26.7577,147.98,147.95,12.2]
[1719888121901,26.7577,147.98,147.93,100.0]
[1719888122087,26.7577,147.98,147.95,12.2]
[1719888123203,20.0,147.98,147.95,12.2]
[1719888123404,26.7576,147.98,147.95,12.2]
[1719888124326,6.7585,147.97,147.91,72.4622]
[1719888124482,6.7585,147.97,147.94,12.2]
[1719888124827,26.7578,147.98,147.95,12.2]
[1719888126905,26.7578,147.98,147.92,6.7603]
[1719888127108,26.7578,147.98,147.94,12.2]
[1719888127689,26.7578,147.98,147.95,12.2]
[1719888128101,20.0,147.98,147.95,12.2]
[1719888128608,20.0,147.98,147.96,12.2]
[1719888130216,26.7578,147.98,147.96,12.2]
[1719888130392,26.7578,147.98,147.95,12.2]
[1719888131298,26.7578,147.98,147.93,123.6592]
[1719888131488,26.7578,147.98,147.95,12.2]
[1719888131690,20.0,147.98,147.95,12.2]
[1719888131911,20.0,147.98,147.96,12.2]
[1719888132097,20.0,147.98,147.95,12.2]
[1719888132605,20.0,147.98,147.91,48.8]
[1719888132606,6.7582,147.97,147.91,48.8]
[1719888132797,6.7582,147.97,147.94,12.2]
[1719888133403,26.7577,147.98,147.94,12.2]
[1719888133702,26.7577,147.98,147.95,12.2]
[1719888133908,26.7578,147.98,147.92,6.7602]
[1719888134107,26.7578,147.98,147.9,116.9026]
[1719888134108,26.7578,147.98,147.94,12.2]
[1719888134316,26.7578,147.98,147.92,6.7603]
[1719888135309,6.7583,147.97,147.92,6.7603]
[1719888135892,26.7578,147.98,147.93,6.7598]
[1719888136915,26.7578,147.98,147.93,6.7599]
[1719888136916,20.0,147.98,147.93,6.7599]
[1719888138294,26.7576,147.98,147.93,6.7599]
[1719888139134,21.2377,147.99,147.93,6.7599]
[1719888139135,7.01537532,148.0,147.98,100.0]
[1719888139302,20.0,148.04,147.98,100.0]
[1719888139507,12.2,148.06,148.01,12.2]
[1719888139799,7.00477036,148.06,147.98,112.2]
[1719888140004,6.7552,148.04,148.02,12.2]
[1719888140203,6.7553,148.03,148.02,12.2]
[1719888140410,26.7553,148.03,148.02,12.2]
[1719888140722,26.7553,148.03,148.01,12.2]
[1719888140907,20.0,148.02,148.01,12.2]
[1719888149207,20.0,148.02,147.98,155.5576]
[1719888151020,7.00477036,148.06,147.99,16.8928]
[1719888151199,7.00477036,148.06,148.05,12.2]
[1719888151396,22.3147,148.07,148.05,12.2]
[1719888151598,15.5611,148.07,148.06,12.2]
[1719888151804,7.00662042,148.1,148.06,12.2]
[1719888152108,7.00662042,148.1,148.08,12.2]
[1719888153118,6.7526,148.09,148.08,12.2]
[1719888154020,6.7537,148.07,148.03,100.0]
[1719888154324,6.7537,148.07,148.06,12.2]
[1719888155815,6.7532,148.08,148.06,12.2]
[1719888156014,6.7527,148.09,148.06,12.2]
[1719888156208,20.0,148.08,148.06,12.2]
[1719888156405,20.0,148.08,148.07,12.2]
[1719888156915,20.0,148.08,148.03,106.7553]
[1719888157114,20.0,148.08,148.07,12.2]
[1719888159507,7.00662042,148.1,148.09,100.0]
[1719888159835,255.6,148.19,148.12,6.7512]
[1719888160033,255.6,148.19,148.11,100.0]
[1719888160614,262.3484,148.19,148.12,16.8777]
[1719888160820,6.7485,148.18,148.16,12.2]
[1719888161213,20.0,148.17,148.16,12.2]